bitfinex/quotes_ETHUSD_20251011
["timestamp","ask_amount","ask_price","bid_price","bid_amount"]
[1760160843779,2.63896864,3789.4,3787.9,0.79463357]
[1760160843990,2.63880826,3789.6,3788.5,3.10884639]
[1760160844196,1.92,3790.4,3788.6,0.4693]
[1760160844394,1.92,3789.8,3788.7,2.77062777]
[1760160844597,1.92,3789.7,3789.0,2.63916708]
[1760160844795,1.92,3789.7,3789.1,0.4693]
[1760160844796,2.63874404,3789.7,3789.1,0.4693]
[1760160845014,2.63900805,3789.4,3788.5,0.4693]
[1760160845384,2.63880025,3789.7,3788.5,0.4693]
[1760160845585,2.63880025,3789.7,3788.9,2.63922582]
[1760160845586,1.92,3789.7,3788.9,2.63922582]
[1760160845807,1.92,3789.7,3788.9,3.10852582]
[1760160846008,1.92,3789.7,3789.0,2.63917885]
[1760160846207,0.41394058,3790.5,3788.1,0.6336]
[1760160846398,0.6336,3790.4,3786.3,1.92]
[1760160846593,1.92,3789.6,3787.3,3.74330345]
[1760160846916,0.0996,3790.8,3789.2,2.63906779]
[1760160847124,1.92,3789.9,3789.2,2.63906779]
[1760160847343,2.63879752,3789.7,3788.8,2.63929076]
[1760160847500,1.92,3790.1,3788.6,0.4693]
[1760160847501,1.92,3789.3,3788.6,0.4693]
[1760160847837,1.92,3790.0,3788.6,0.4693]
[1760160848040,2.63826265,3790.4,3788.0,0.4412]
[1760160848041,4.55936021,3788.8,3788.0,0.4412]
[1760160848328,2.63963592,3788.5,3787.6,2.64013899]
[1760160848535,0.049,3789.2,3787.5,0.4412]
[1760160848739,0.049,3789.2,3785.7,2.64148523]
[1760160848740,1.06687863,3789.7,3787.0,0.4412]
[1760160848894,2.63880092,3789.6,3787.5,2.64026402]
[1760160849094,2.63880092,3789.6,3787.4,0.4412]
[1760160849095,3.27256014,3789.4,3787.4,0.4412]
[1760160849293,2.6399947,3787.9,3787.0,2.64054989]
[1760160849536,1.92,3788.1,3787.0,2.64061262]
[1760160849705,2.63900984,3789.3,3787.0,2.64061262]
[1760160849706,1.92,3788.4,3787.7,2.64006568]
[1760160849904,1.92,3788.7,3787.8,0.4412]
[1760160850108,1.92,3788.7,3786.8,0.6336]
[1760160850109,3.2725402,3789.4,3787.4,0.4412]
[1760160850307,4.55887056,3789.5,3787.4,0.4412]
[1760160850308,1.92,3788.0,3787.4,0.4412]
[1760160850513,1.9695,3788.7,3787.4,0.4412]
[1760160850702,1.92,3788.2,3787.4,3.08147468]
[1760160851099,0.41406067,3789.5,3787.6,0.6336]
[1760160851305,0.41406067,3789.5,3788.6,2.63945967]
[1760160851607,0.41406067,3789.5,3788.7,0.4412]
[1760160851936,2.63839019,3790.2,3789.1,2.63914251]
[1760160852139,2.63839019,3790.2,3788.7,0.4412]
[1760160852140,1.92,3789.8,3788.8,2.6393581]
[1760160852310,2.63864696,3789.9,3788.9,0.4412]
[1760160852511,2.63864696,3789.9,3789.1,2.63910179]
[1760160852825,2.63817438,3790.5,3788.9,0.4412]
[1760160853028,2.63817438,3790.5,3789.0,2.63921315]
[1760160853029,2.63867491,3789.8,3789.0,2.63921315]
[1760160853226,2.63874093,3789.7,3789.1,0.4412]
[1760160853439,1.92,3789.7,3789.1,0.4412]
[1760160853630,2.6387911,3789.7,3789.1,0.4412]
[1760160853838,1.92,3789.6,3789.1,0.4412]
[1760160854412,2.63817438,3790.5,3789.4,2.63892378]
[1760160854413,1.92,3790.1,3789.4,2.63892378]
[1760160854629,16.86301053,3792.1,3789.5,0.4412]
[1760160854828,2.63759528,3791.4,3789.6,0.2183]
[1760160855000,2.63804904,3790.7,3789.8,2.63865208]
[1760160855206,2.33393631,3790.6,3789.8,2.63865208]
[1760160855444,0.41393631,3790.6,3789.6,2.85706971]
[1760160855642,0.41393631,3790.6,3789.5,0.5724]
[1760160855643,0.41393631,3790.6,3789.5,0.4412]
[1760160855937,1.92,3789.9,3789.2,2.85735258]
[1760160856243,0.099,3790.4,3788.8,0.2183]
[1760160856409,1.92,3789.6,3788.9,0.5724]
[1760160856606,1.92,3790.3,3788.9,0.4412]
[1760160856905,1.92,3790.3,3788.7,2.77056584]
[1760160856906,1.92,3790.3,3788.7,3.08056175]
[1760160857104,2.63892057,3789.5,3788.7,0.4412]
[1760160857338,1.92,3789.5,3788.7,0.4412]
[1760160857543,0.1057,3789.8,3786.7,0.002]
[1760160857723,1.92,3788.3,3787.6,0.4412]
[1760160857908,1.92,3789.0,3787.6,0.4412]
[1760160858108,2.0191,3789.0,3787.6,0.4412]
[1760160858415,1.92,3788.2,3787.6,0.4412]
[1760160858615,1.92,3788.6,3787.6,3.0813355]
[1760160858941,0.41405762,3789.6,3788.1,2.6397859]
[1760160859142,2.63954084,3788.6,3787.7,3.08131498]
[1760160859343,2.63954084,3788.6,3787.8,2.63999767]
[1760160859344,1.92,3788.5,3787.8,2.63999767]
[1760160859542,2.63954084,3788.6,3787.7,0.4412]
[1760160859543,1.92,3788.7,3788.0,2.63989161]
[1760160859846,0.0991,3789.3,3787.1,0.002]
[1760160859847,2.63783979,3792.5,3790.3,2.63831358]
[1760160860011,2.63783979,3792.5,3790.3,3.71311358]
[1760160860012,2.63753657,3791.5,3790.3,3.71311358]
[1760160860212,0.41380174,3790.7,3790.3,3.71311358]
[1760160860824,4.55755017,3791.4,3790.3,3.07951358]
[1760160861038,1.92,3791.4,3790.3,3.07951358]
[1760160861248,2.63755248,3791.4,3790.3,3.07951358]
[1760160861423,2.63755248,3791.4,3789.3,2.63896891]
[1760160861424,0.099,3791.6,3789.4,0.4412]
[1760160861620,1.92,3790.3,3788.9,0.4412]
[1760160861939,1.92,3789.5,3788.9,0.4412]
[1760160862138,1.92,3789.6,3788.9,0.4412]
[1760160862450,4.55874805,3789.7,3788.9,3.08044357]
[1760160862751,2.6386892,3789.8,3789.0,2.63915348]
[1760160862954,1.92,3789.7,3788.9,0.4412]
[1760160863163,2.63927758,3790.4,3789.3,2.63900984]
[1760160863454,1.92,3789.9,3789.1,3.08033326]
[1760160863762,2.63845552,3790.1,3789.2,2.63907948]
[1760160863959,2.6392988,3790.4,3789.1,0.4412]
[1760160863960,0.001,3790.4,3789.1,0.4412]
[1760160864115,2.63924458,3790.4,3789.2,2.63907948]
[1760160864311,0.001,3790.4,3789.3,0.4412]
[1760160864625,0.001,3790.4,3789.7,2.63867232]
[1760160864817,0.001,3790.4,3789.4,0.6336]
[1760160865150,0.001,3790.4,3789.9,0.6336]
[1760160865461,0.001,3790.4,3789.7,0.6336]
[1760160865462,0.001,3790.4,3790.3,2.63831358]
[1760160865652,0.001,3790.4,3790.3,3.27191358]
[1760160865824,0.001,3790.8,3790.7,3.27163519]
[1760160866152,0.41380145,3792.0,3790.6,0.6336]
[1760160866312,0.41380145,3792.0,3790.2,2.63834482]
[1760160866313,0.41380145,3792.0,3791.0,0.6336]
[1760160866516,0.41380145,3792.0,3790.7,3.07923009]
[1760160866517,0.41380145,3792.0,3790.7,0.4412]
[1760160866752,1.92,3791.4,3790.7,3.07922487]
[1760160867048,0.41380145,3792.0,3790.7,0.4412]
[1760160867253,2.63726989,3791.8,3790.7,0.4412]
[1760160867462,1.92,3791.9,3789.7,0.4412]
[1760160867463,1.92,3791.2,3789.7,0.4412]
[1760160867615,1.92,3790.6,3789.8,2.63860177]
[1760160867811,2.63811765,3790.6,3789.8,2.63866167]
[1760160868051,1.92,3790.4,3789.7,0.1312]
[1760160868236,1.92,3790.9,3789.8,0.4412]
[1760160868544,2.63865828,3789.9,3789.2,0.4412]
[1760160868753,2.022,3791.0,3789.2,0.4412]
[1760160868754,2.63873974,3789.7,3789.2,0.4412]
[1760160869063,1.92,3790.2,3789.2,0.4412]
[1760160869228,2.63874424,3789.7,3788.8,3.08055051]
[1760160869548,1.92,3789.4,3788.8,0.4412]
[1760160869758,2.63901326,3789.3,3788.8,0.4412]
[1760160870064,1.92,3789.7,3788.8,0.4412]
[1760160870366,2.63889012,3789.5,3788.7,0.5724]
[1760160870655,2.63889012,3789.5,3788.7,3.2118072]
[1760160870860,1.92,3789.9,3788.9,2.63928844]
[1760160871022,1.92,3790.0,3789.3,2.63900031]
[1760160871418,2.63855328,3790.0,3789.4,0.4412]
[1760160871655,1.92,3790.0,3789.4,0.4412]
[1760160871858,2.63852542,3790.0,3789.4,0.4412]
[1760160872037,1.92,3790.2,3789.4,0.4412]
[1760160872354,1.92,3789.7,3789.0,0.1312]
[1760160872554,1.92,3790.3,3788.9,0.4412]
[1760160872930,1.92,3789.6,3788.9,0.4412]
[1760160873367,4.55865285,3789.9,3789.1,2.63912472]
[1760160873677,1.92,3791.2,3789.3,0.6336]
[1760160873962,2.63839429,3790.2,3789.4,2.6389402]
[1760160874157,4.55830614,3790.4,3789.5,3.08004351]
[1760160874546,2.63815891,3790.6,3789.8,2.63865983]
[1760160874746,0.41389125,3790.7,3789.9,0.5724]
[1760160875134,1.92,3791.5,3789.9,0.4412]
[1760160875135,1.92,3790.2,3789.9,0.4412]
[1760160875336,1.92,3790.6,3790.0,0.4412]
[1760160875627,0.102,3791.2,3789.3,0.4412]
[1760160875831,2.63871713,3789.8,3789.0,0.4412]
[1760160876140,2.63871713,3789.8,3789.0,3.08040086]
[1760160876638,1.92,3790.8,3789.0,0.4412]
[1760160876844,2.6386653,3789.8,3789.0,0.4412]
[1760160877053,2.63817039,3790.6,3789.0,0.4412]
[1760160877054,1.92,3790.5,3789.0,0.4412]
[1760160877260,1.92,3790.9,3789.2,2.63906463]
[1760160877579,1.92,3791.2,3789.3,0.4412]
[1760160877798,2.63851002,3790.1,3789.3,3.08019537]
[1760160877962,1.92,3790.1,3789.3,0.4412]
[1760160878153,2.6384644,3790.1,3789.3,3.080198]
[1760160878473,2.6384652,3790.1,3789.4,2.6389246]
[1760160878675,2.63862121,3789.9,3789.3,0.4412]
[1760160879085,1.92,3789.9,3789.1,0.1312]
[1760160879245,2.63878476,3789.7,3788.8,0.1312]
[1760160879451,2.63878476,3789.7,3789.0,2.63921623]
[1760160879650,2.63878476,3789.7,3788.9,2.6392244]
[1760160879651,1.92,3789.7,3788.9,2.6392244]
[1760160879878,2.63878867,3789.7,3788.8,2.77055544]
[1760160880061,2.6388245,3789.6,3788.9,2.6392609]
[1760160880256,2.6388777,3789.5,3788.8,0.1312]
[1760160880450,2.63873558,3789.7,3788.8,0.1312]
[1760160880650,2.63873558,3789.7,3788.7,3.0868719]
[1760160880651,2.63880092,3789.6,3788.7,3.0868719]
[1760160880958,1.92,3789.7,3789.0,2.63916116]
[1760160881159,2.6386626,3789.8,3788.6,0.1312]
[1760160881160,0.41392405,3789.8,3789.1,0.4475]
[1760160881375,4.55853033,3790.0,3789.3,2.63895516]
[1760160881595,1.92,3790.0,3789.4,3.08642781]
[1760160881790,1.92,3789.8,3789.4,0.4475]
[1760160882105,14.64264923,3790.9,3788.7,0.4475]
[1760160882106,1.92,3790.1,3788.7,0.4475]
[1760160882403,2.63910749,3789.2,3788.7,0.4475]
[1760160882564,1.92,3789.2,3788.7,0.4475]
[1760160882892,2.6388479,3789.6,3788.2,0.6336]
[1760160882893,1.92,3789.9,3789.1,2.63908354]
[1760160883094,16.86661398,3791.0,3788.0,2.63990818]
[1760160883095,0.099,3791.6,3789.3,0.6336]
[1760160883309,0.099,3791.6,3789.8,2.63862769]
[1760160883310,2.63812432,3790.6,3789.8,2.63862769]
[1760160883463,0.099,3791.6,3789.9,0.4475]
[1760160883666,0.001,3792.1,3790.0,0.6336]
[1760160883890,0.001,3792.1,3788.6,1.92]
[1760160883891,2.63729003,3791.8,3790.9,2.63782981]
[1760160884067,0.001,3792.1,3791.2,2.63768601]
[1760160884267,0.001,3792.1,3791.0,0.4475]
[1760160884268,1.92,3791.9,3791.1,2.63774542]
[1760160884462,2.63721686,3791.9,3791.1,2.63774542]
[1760160884800,2.63721686,3791.9,3790.7,0.6336]
[1760160884801,0.001,3792.1,3790.7,0.6336]
[1760160884969,1.92,3791.3,3790.6,0.4475]
[1760160885294,2.63765856,3791.3,3790.5,0.6336]
[1760160885601,4.557735,3791.2,3790.5,0.6336]
[1760160885800,2.63777739,3791.1,3790.4,0.6336]
[1760160885966,2.63769157,3791.2,3790.4,3.27181271]
[1760160886168,1.92,3792.3,3790.6,0.6336]
[1760160886400,1.92,3792.3,3790.5,0.4475]
[1760160886401,2.63768727,3791.2,3790.5,0.4475]
[1760160886605,1.92,3791.3,3790.5,0.4475]
[1760160886910,1.92,3791.2,3790.5,0.4475]
[1760160887193,1.92,3790.9,3790.1,1.0811]
[1760160887498,2.63805279,3790.7,3790.1,1.0811]
[1760160887684,1.92,3790.7,3788.8,0.4475]
[1760160887873,0.1523,3791.9,3787.6,2.64015484]
[1760160887874,1.92,3790.2,3788.9,0.4475]
[1760160888075,1.92,3790.3,3789.5,2.63886221]
[1760160888275,2.63839388,3790.2,3789.4,0.4475]
[1760160888495,1.92,3790.5,3789.6,2.63876474]
[1760160888716,1.92,3790.6,3789.8,0.6336]
[1760160888930,2.63802923,3790.8,3789.9,2.63858943]
[1760160889099,4.55804928,3790.7,3789.9,2.63858943]
[1760160889296,1.92,3790.5,3789.7,3.08618112]
[1760160889530,1.92,3790.7,3789.7,0.4475]
[1760160889710,1.92,3790.5,3789.5,0.6336]
[1760160890020,2.6383719,3790.3,3789.5,0.6336]
[1760160890196,2.63847567,3790.1,3789.2,3.08657881]
[1760160890586,2.63832163,3790.3,3789.2,3.08657881]
[1760160890587,2.63852537,3790.0,3789.2,3.08657881]
[1760160890816,4.55821167,3790.5,3789.2,0.4475]
[1760160891200,1.92,3790.7,3789.2,0.4475]
[1760160891396,2.63869452,3789.8,3789.2,0.4475]
[1760160891635,0.0995,3790.8,3789.2,3.08654305]
[1760160891636,1.92,3790.0,3789.2,3.08654305]
[1760160891927,3.68500292,3791.5,3788.1,0.2183]
[1760160891928,1.92,3790.4,3789.6,2.63880092]
[1760160892116,2.63768727,3791.2,3789.7,3.07203065]
[1760160892292,0.001,3790.8,3790.1,2.63845052]
[1760160892507,0.001,3790.8,3790.5,0.6336]
[1760160892824,0.001,3790.8,3790.4,0.1312]
[1760160893013,2.63810627,3790.6,3789.8,3.70555916]
[1760160893213,2.63810627,3790.6,3789.9,0.1312]
[1760160893409,2.63819519,3790.5,3789.9,0.1312]
[1760160893812,2.63898287,3790.8,3789.9,0.1312]
[1760160893999,2.63819063,3790.5,3789.9,0.1312]
[1760160894398,2.63811837,3790.6,3789.9,0.1312]
[1760160894694,0.001,3790.8,3789.4,0.4333]
[1760160894918,0.001,3790.8,3789.4,0.5645]
[1760160895126,2.63823662,3790.5,3789.6,2.63878059]
[1760160895320,4.55811197,3790.6,3789.5,2.63887056]
[1760160895518,4.55811197,3790.6,3789.4,0.5645]
[1760160895519,2.63838585,3790.2,3789.4,0.5645]
[1760160895719,1.92,3790.6,3789.4,3.20343473]
[1760160895927,2.63844884,3790.2,3789.4,3.20343473]
[1760160896663,2.63832811,3790.3,3789.4,0.5645]
[1760160896818,16.24825903,3790.7,3789.0,0.002]
[1760160897018,1.92,3790.2,3789.0,0.5665]
[1760160897222,14.32825903,3790.7,3789.1,0.4333]
[1760160897408,1.92,3790.6,3789.1,0.4333]
[1760160897610,2.63846101,3790.1,3789.3,2.63898445]
[1760160897849,2.63803519,3790.7,3789.5,2.638803]
[1760160898040,1.92,3790.3,3789.6,0.4333]
[1760160898219,1.92,3790.6,3789.7,0.6336]
[1760160898543,2.63803519,3790.7,3789.9,2.63853212]
[1760160899143,1.92,3790.5,3789.8,3.07195965]
[1760160899435,4.5590257,3790.8,3789.9,2.63852632]
[1760160899628,1.92,3790.6,3789.9,2.63852632]
[1760160899836,1.92,3790.6,3790.0,0.4333]
[1760160900357,0.001,3790.8,3789.7,0.7648]
[1760160900555,2.638535,3790.0,3789.2,2.63901861]
[1760160900734,1.92,3790.4,3789.6,2.63875389]
[1760160900939,2.63818318,3790.5,3789.8,2.63866167]
[1760160901253,2.63859351,3789.9,3789.2,0.5645]
[1760160901449,1.92,3790.5,3789.2,0.5645]
[1760160901618,0.001,3790.8,3789.3,2.63900984]
[1760160901953,0.001,3790.8,3789.9,0.1312]
[1760160902242,0.001,3790.8,3789.5,0.1312]
[1760160902460,0.001,3790.8,3789.6,0.4333]
[1760160902748,2.63840068,3790.2,3789.6,0.4333]
[1760160902958,2.63858737,3790.0,3789.2,0.6336]
[1760160903159,2.63858737,3790.0,3789.2,3.83716577]
[1760160903474,0.2072,3790.1,3789.0,0.002]
[1760160903638,1.92,3789.4,3789.0,0.002]
[1760160904074,2.6389316,3789.5,3789.0,0.002]
[1760160904075,1.92,3789.5,3789.0,0.002]
[1760160904242,2.63902728,3790.8,3789.0,0.002]
[1760160904243,2.63914913,3789.1,3789.0,0.002]
[1760160904448,1.92,3789.8,3789.0,0.002]
[1760160904644,1.92,3789.9,3789.0,0.002]
[1760160905169,4.55914913,3789.1,3789.0,0.002]
[1760160905344,4.65824913,3789.1,3789.0,0.002]
[1760160905750,2.63942777,3788.7,3788.6,0.002]
[1760160905945,4.55942777,3788.7,3788.6,0.002]
[1760160906185,4.65852777,3788.7,3788.6,0.002]
[1760160906535,4.55942777,3788.7,3788.6,0.002]
[1760160906759,1.92,3788.7,3788.6,0.002]
[1760160907552,4.55942777,3788.7,3788.6,0.002]
[1760160908338,1.92,3788.7,3788.6,0.002]
[1760160909275,1.92,3788.7,3788.6,0.458]
[1760160909479,2.63886026,3789.6,3788.7,2.63937198]
[1760160909645,1.92,3789.5,3788.7,3.27296356]
[1760160909976,0.4140319,3789.7,3788.7,0.6336]
[1760160910137,0.4140319,3789.7,3789.0,0.6336]
[1760160910338,0.4140319,3789.7,3789.2,2.63902813]
[1760160910564,0.4140319,3789.7,3788.6,0.002]
[1760160910739,2.63871651,3789.8,3789.0,0.6336]
[1760160910940,2.63831358,3790.3,3788.7,0.456]
[1760160911177,0.0992,3790.4,3788.7,0.456]
[1760160911178,1.92,3790.1,3788.7,0.456]
[1760160911369,2.63906598,3789.3,3788.7,0.456]
[1760160911575,1.92,3789.9,3788.6,0.002]
[1760160911576,1.92,3789.1,3788.6,0.002]
[1760160911873,2.63921879,3789.0,3788.6,0.002]
[1760160912089,1.92,3789.1,3788.6,0.002]
[1760160912237,2.63929882,3788.9,3788.6,0.002]
[1760160912444,1.92,3789.4,3788.6,0.002]
[1760160913075,4.55810478,3790.6,3788.7,0.456]
[1760160913277,1.92,3789.4,3788.7,0.456]
[1760160913579,1.92,3789.6,3788.7,0.456]
[1760160913781,1.92,3789.6,3788.8,2.6393581]
[1760160913951,4.55879446,3789.7,3788.7,0.456]
[1760160914138,2.63892706,3789.5,3788.7,0.6336]
[1760160914345,1.92,3789.4,3788.8,2.63935458]
[1760160914572,2.63864012,3789.9,3788.6,0.1332]
[1760160914573,1.92,3789.2,3788.6,0.1332]
[1760160915152,1.92,3789.3,3788.6,2.77269335]
[1760160915350,4.5588772,3789.5,3788.6,0.1332]
[1760160915647,2.63914664,3789.2,3788.6,0.002]
[1760160915866,1.92,3789.3,3788.6,0.002]
[1760160916064,2.63909082,3789.2,3788.6,0.002]
[1760160916265,1.92,3789.6,3788.6,0.002]
[1760160916443,2.63916366,3789.1,3788.6,0.002]
[1760160916842,4.55930308,3788.9,3788.6,0.002]
[1760160917042,4.55942777,3788.7,3788.6,0.002]
[1760160917582,4.65862777,3788.7,3788.6,0.002]
[1760160918067,4.55942777,3788.7,3788.6,0.002]
[1760160918377,1.92,3788.7,3788.6,3.09749743]
[1760160918678,2.63920393,3789.1,3788.6,0.458]
[1760160918884,2.63908839,3789.2,3788.7,0.456]
[1760160919085,2.63908839,3789.2,3788.6,0.002]
[1760160919244,2.63890216,3789.5,3788.8,0.456]
[1760160919598,0.41397359,3789.8,3788.8,0.456]
[1760160919874,0.41397359,3789.8,3788.9,0.1312]
[1760160920042,1.92,3789.4,3788.8,0.456]
[1760160920242,1.92,3789.6,3788.8,0.456]
[1760160920443,0.41397359,3789.8,3788.8,0.456]
[1760160920444,2.6390099,3789.3,3788.8,0.456]
[1760160920644,0.41397359,3789.8,3788.9,0.456]
[1760160920645,2.33397359,3789.8,3788.9,0.456]
[1760160920862,2.63829232,3790.4,3788.9,0.456]
[1760160920863,1.92,3789.6,3788.9,0.456]
[1760160921055,2.63887056,3789.5,3788.9,0.456]
[1760160921265,1.92,3789.4,3788.9,0.456]
[1760160921467,1.92,3789.4,3788.6,0.002]
[1760160921468,2.63898274,3789.4,3788.6,0.002]
[1760160921850,1.92,3789.4,3788.7,2.63942381]
[1760160922368,1.92,3789.4,3788.6,0.002]
[1760160922369,2.63928844,3788.9,3788.6,0.002]
[1760160922680,4.55942777,3788.7,3788.6,0.002]
[1760160922980,5.19302777,3788.7,3788.6,0.001]
[1760160923280,2.64047317,3787.2,3786.7,0.002]
[1760160923457,1.92,3787.3,3786.7,0.458]
[1760160924162,2.64040646,3787.3,3786.7,0.458]
[1760160924341,1.92,3787.6,3786.7,0.458]
[1760160924545,2.63998521,3787.9,3786.7,0.458]
[1760160924950,4.56047317,3787.2,3786.7,0.458]
[1760160925358,1.92,3787.2,3786.7,0.458]
[1760160925558,4.56047317,3787.2,3786.7,0.002]
[1760160927096,4.56047317,3787.2,3786.7,0.458]
[1760160927298,4.56047317,3787.2,3786.7,0.002]
[1760160927773,4.65947317,3787.2,3786.7,0.002]
[1760160928101,4.56047317,3787.2,3786.7,0.002]
[1760160928501,4.65947317,3787.2,3786.7,0.002]
[1760160928998,4.56047317,3787.2,3786.7,0.002]
[1760160929203,4.65947317,3787.2,3786.7,0.002]
[1760160929581,4.56047317,3787.2,3786.7,0.002]
[1760160930378,2.33425487,3787.2,3786.7,0.002]
[1760160930586,2.33425487,3787.2,3787.1,0.458]
[1760160930775,1.92,3787.2,3787.1,0.458]
[1760160930969,2.64015192,3787.7,3787.1,0.458]
[1760160931296,2.63962229,3788.5,3787.1,0.458]
[1760160931297,1.92,3787.5,3787.1,0.458]
[1760160931483,2.64026611,3787.5,3787.1,0.002]
[1760160931681,2.64046037,3787.3,3787.1,0.002]
[1760160931884,4.56047317,3787.2,3787.1,0.002]
[1760160933013,1.92,3787.2,3787.1,0.002]
[1760160933212,1.92,3787.2,3787.1,0.458]
[1760160933504,1.92,3787.2,3787.1,0.002]
[1760160933909,4.56047317,3787.2,3787.1,0.002]
[1760160934320,2.64075208,3786.8,3786.7,0.002]
[1760160934504,4.56075208,3786.8,3786.7,0.002]
[1760160934805,1.92,3786.8,3786.7,0.458]
[1760160935275,0.0996,3788.4,3786.7,0.458]
[1760160935471,0.7338,3788.9,3786.9,2.64061898]
[1760160935685,2.63991734,3788.0,3787.1,2.64048734]
[1760160935883,0.1002,3788.9,3787.0,0.456]
[1760160936106,0.1002,3788.9,3787.1,2.6404829]
[1760160936107,1.92,3787.9,3787.1,2.6404829]
[1760160936307,1.92,3787.9,3787.0,0.456]
[1760160936308,1.92,3787.7,3787.0,3.09660002]
[1760160936506,2.64013726,3787.7,3787.0,0.456]
[1760160936711,2.63956711,3788.5,3787.0,0.456]
[1760160936712,1.92,3788.7,3787.0,0.456]
[1760160936877,1.92,3787.4,3787.0,0.456]
[1760160937073,1.92,3787.5,3787.0,0.456]
[1760160937290,1.92,3788.2,3786.7,0.002]
[1760160937480,2.6401316,3787.7,3787.0,3.09661233]
[1760160938404,0.41414369,3787.9,3787.3,2.64040097]
[1760160938620,0.41414369,3787.9,3787.2,0.6336]
[1760160938801,0.41414369,3787.9,3787.4,3.27393373]
[1760160939007,4.55964705,3788.4,3787.6,2.64015396]
[1760160939321,0.41410982,3788.4,3787.5,3.10894473]
[1760160939495,0.41410982,3788.4,3786.0,0.6336]
[1760160939496,0.41410982,3788.4,3787.7,2.64012461]
[1760160939823,0.41410982,3788.4,3787.6,0.4687]
[1760160940009,0.41410982,3788.4,3787.8,2.64005043]
[1760160940326,0.41410982,3788.4,3788.3,0.2311]
[1760160940679,1.92,3788.8,3788.3,0.6998]
[1760160940876,0.41403674,3789.5,3788.4,0.4687]
[1760160941434,1.92,3788.8,3788.4,0.4687]
[1760160941723,0.41403674,3789.5,3788.5,0.4687]
[1760160941927,0.001,3789.8,3788.5,0.4687]
[1760160942096,1.92,3789.7,3788.5,3.10824358]
[1760160942504,2.63900984,3789.3,3788.5,3.10824358]
[1760160942690,1.92,3789.2,3788.5,3.10824358]
[1760160942889,2.63900984,3789.3,3788.5,3.10824358]
[1760160943099,0.001,3789.8,3788.5,3.10824358]
[1760160943100,2.63912382,3789.2,3788.5,0.4687]
[1760160943300,4.55902064,3789.3,3788.5,3.10826515]
[1760160943513,0.001,3789.4,3788.6,0.4687]
[1760160943715,0.001,3789.4,3789.3,2.63900984]
[1760160944030,0.001,3789.4,3789.3,0.1312]
[1760160944235,0.001,3789.4,3789.0,0.4687]
[1760160944440,0.001,3789.4,3788.7,0.4687]
[1760160944592,0.001,3789.4,3788.5,0.4687]
[1760160945233,0.001,3789.4,3787.8,0.4687]
[1760160945533,1.92,3789.0,3788.2,0.2311]
[1760160945724,2.63924332,3789.0,3788.2,0.2311]
[1760160945926,1.92,3789.2,3788.2,0.2311]
[1760160946093,0.001,3789.4,3788.4,0.6336]
[1760160946094,1.92,3789.3,3788.4,0.6336]
[1760160946298,0.001,3789.4,3788.5,0.4687]
[1760160946599,0.001,3789.4,3788.8,0.6336]
[1760160946799,0.001,3789.4,3789.3,2.63900984]
[1760160947102,0.001,3789.4,3789.3,3.27260984]
[1760160947289,0.001,3790.8,3789.7,3.27233129]
[1760160947493,0.001,3790.8,3790.1,3.27205281]
[1760160947897,0.001,3790.8,3790.1,3.74075281]
[1760160948140,0.001,3790.8,3790.1,0.4687]
[1760160948428,0.001,3790.8,3790.0,0.6336]
[1760160948429,1.921,3790.8,3790.0,0.6336]
[1760160948662,0.001,3790.8,3790.0,2.63846445]
[1760160948847,1.92,3790.6,3790.1,0.4687]
[1760160949050,0.001,3790.8,3790.1,0.4687]
[1760160949051,1.92,3790.7,3790.1,0.4687]
[1760160949360,0.001,3790.8,3789.4,0.4687]
[1760160949558,2.63825769,3790.4,3790.0,0.4687]
[1760160949729,2.63845437,3790.1,3789.3,0.6336]
[1760160950075,0.001,3790.8,3788.0,1.92]
[1760160950363,2.63803691,3790.7,3789.7,0.6336]
[1760160950563,0.001,3790.8,3789.7,3.27232478]
[1760160950759,2.63803583,3790.7,3789.8,0.4521]
[1760160951261,2.63824948,3790.4,3789.9,0.4521]
[1760160951631,2.63832212,3790.3,3789.9,0.4521]
[1760160951831,2.63847238,3790.1,3789.4,0.6336]
[1760160952133,2.63857929,3790.0,3789.1,0.6336]
[1760160952338,2.63846794,3790.1,3789.2,2.63907948]
[1760160952557,2.63883351,3789.6,3789.0,0.4521]
[1760160952777,2.74032398,3790.8,3789.0,0.4521]
[1760160952924,2.63888313,3789.5,3788.5,4.7914]
[1760160953125,0.11,3789.8,3788.5,4.7914]
[1760160953356,2.63873129,3789.7,3788.5,4.7914]
[1760160953571,2.74013129,3789.7,3788.5,4.7914]
[1760160953933,2.63949743,3788.6,3788.5,4.7914]
[1760160955436,4.66089743,3788.6,3788.5,4.7914]
[1760160956585,1.92,3788.5,3786.7,0.002]
[1760160956761,2.64061187,3787.1,3786.7,0.002]
[1760160957382,2.64075208,3786.8,3786.7,0.002]
[1760160957570,2.64063052,3787.0,3786.7,0.002]
[1760160958147,1.92,3788.2,3786.8,0.4521]
[1760160958366,1.92,3787.3,3786.8,0.4521]
[1760160958564,1.92,3787.5,3786.7,0.002]
[1760160958777,4.56040345,3787.3,3786.7,0.002]
[1760160958982,2.64062666,3787.0,3786.7,0.002]
[1760160959284,1.92,3787.7,3786.7,0.002]
[1760160959692,2.64075208,3786.8,3786.7,0.002]
[1760160959982,2.64019431,3787.6,3786.7,0.002]
[1760160960283,2.64075084,3786.9,3786.7,0.002]
[1760160960487,2.64075208,3786.8,3786.7,0.002]
[1760160960854,2.64069175,3786.9,3786.7,0.002]
[1760160961183,0.41421893,3787.6,3786.7,0.002]
[1760160961485,1.92,3787.1,3786.7,0.002]